[Event "POL-chT 2nd League-3 2020"]
[Site "Poronin"]
[Date "2020.09.07"]
[Round "3.20"]
[White "Laszewicz, Pawel"]
[Black "Ciasnocha, Michal"]
[Result "1/2-1/2"]
[ECO "C43"]
[WhiteElo "2150"]
[BlackElo "1826"]
[Annotator "NA"]
[PlyCount "98"]
[EventDate "2020.09.05"]
[EventType "team-tourn"]
[EventCountry "POL"]
[SourceTitle "playchess.com"]
[Source "ChessBase"]
[SourceQuality "1"]
[TimeControl "40/5400+30:900+30"]

1. e4 {[%emt 0:00:00]} e5 {[%emt 0:00:00]} 2. Nf3 {[%emt 0:00:00]} Nf6 {[%emt 0:00:00]} 3. d4 {[%emt 0:00:00]} Nxe4 {[%emt 0:00:01]} 4. Bd3 {[%emt 0:00:13]} d5 {[%emt 0:00:21]} 5. Nxe5 {[%emt 0:00:22]} Bd6 {[%emt 0:00:40]} 6. O-O {[%emt 0:02:20]} O-O {[%emt 0:01:45]} 7. c4 {[%emt 0:02:21]} c6 {[%emt 0:04:05]} 8. Nc3 {[%emt 0:01:59]} Nxc3 {[%emt 0:12:45]} 9. bxc3 {[%emt 0:00:05]} Nd7 {[%emt 0:05:45]} 10. Re1 {[%emt 0:03:17]} Nxe5 {[%emt 0:05:19]} 11. dxe5 {[%emt 0:01:05]} Bc5 {[%emt 0:01:06]} 12. Qh5 {[%emt 0:18:11]} g6 {[%emt 0:01:36]} 13. Qh6 {[%emt 0:00:32]} Re8 {[%emt 0:10:24]} 14. Bg5 {[%emt 0:03:07]} Be7 {[%emt 0:04:44]} 15. Bf6 {[%emt 0:00:56]} Bf8 {[%emt 0:01:41]} 16. Qg5 {[%emt 0:04:16]} Qc7 {[%emt 0:15:21]} 17. cxd5 {[%emt 0:34:41]} cxd5 {[%emt 0:00:52]} 18. Bb5 {[%emt 0:00:30]} Re6 {[%emt 0:06:40]} 19. Re3 {[%emt 0:04:12]} Bg7 {[%emt 0:06:28]} 20. Rae1 {[%emt 0:06:18]} Bd7 {[%emt 0:03:41]} 21. Bxd7 {[%emt 0:10:38]} Qxd7 {[%emt 0:01:30]} 22. Bxg7 {[%emt 0:00:18]} Kxg7 {[%emt 0:00:06]} 23. Rh3 {[%emt 0:00:09]} Kg8 {[%emt 0:01:41]} 24. Qd2 {[%emt 0:02:26]} Rc8 {[%emt 0:01:50]} 25. Rd3 {[%emt 0:00:41]} Rc5 {[%emt 0:01:04]} 26. f4 {[%emt 0:00:13]} Rec6 {[%emt 0:01:51]} 27. Rd1 {[%emt 0:00:34]} Qc7 {[%emt 0:03:44]} 28. Rxd5 {[%emt 0:01:22]} Rxc3 {[%emt 0:00:38]} 29. h3 {[%emt 0:02:09]} Rc1 {[%emt 0:02:59]} 30. Rxc1 {[%emt 0:00:46]} Rxc1+ {[%emt 0:00:03]} 31. Kh2 {[%emt 0:00:07]} Rc2 {[%emt 0:01:26]} 32. Qd4 {[%emt 0:00:24]} Qc4 {[%emt 0:02:19]} 33. Rd8+ {[%emt 0:01:08]} Kg7 {[%emt 0:00:04]} 34. Qxc4 {[%emt 0:00:08]} Rxc4 {[%emt 0:00:04]} 35. Rd7 {[%emt 0:00:23]} Kf8 {[%emt 0:01:20]} 36. Rxb7 {[%emt 0:00:27]} Ra4 {[%emt 0:00:14]} 37. e6 {[%emt 0:01:25]} fxe6 {[%emt 0:00:50]} 38. Rxh7 {[%emt 0:00:03]} Rxa2 {[%emt 0:00:17]} 39. Kg3 {[%emt 0:00:31]} a5 {[%emt 0:01:56]} 40. Kf3 {[%emt 0:00:00]} Rb2 {[%emt 0:00:00]} 41. Ra7 {[%emt 0:05:08]} Rb5 {[%emt 0:01:15]} 42. g4 {[%emt 0:02:44]} e5 {[%emt 0:11:39]} 43. f5 {[%emt 0:02:00]} Rb3+ {[%emt 0:00:40]} 44. Kg2 {[%emt 0:04:52]} gxf5 {[%emt 0:00:09]} 45. gxf5 {[%emt 0:01:00]} Ra3 {[%emt 0:00:42]} 46. h4 {[%emt 0:00:47]} e4 {[%emt 0:01:45]} 47. h5 {[%emt 0:00:25]} Kg8 {[%emt 0:00:48]} 48. h6 {[%emt 0:01:20]} Rf3 {[%emt 0:01:01]} 49. Rxa5 {[%emt 0:00:55]} Kh7 1/2-1/2

[Event "POL-chT 2nd League-3 2020"]
[Site "Poronin"]
[Date "2020.09.07"]
[Round "3.21"]
[White "Ziemniak, Piotr"]
[Black "Machlowski, Slawomir"]
[Result "1/2-1/2"]
[ECO "B40"]
[WhiteElo "1741"]
[BlackElo "2098"]
[Annotator "NA"]
[PlyCount "76"]
[EventDate "2020.09.05"]
[EventType "team-tourn"]
[EventCountry "POL"]
[SourceTitle "playchess.com"]
[Source "ChessBase"]
[SourceQuality "1"]
[TimeControl "40/5400+30:900+30"]

1. e4 {[%emt 0:00:00]} c5 {[%emt 0:00:00]} 2. Nf3 {[%emt 0:00:00]} e6 {[%emt 0:00:00]} 3. d4 {[%emt 0:00:00]} cxd4 {[%emt 0:00:00]} 4. Nxd4 {[%emt 0:00:00]} Qb6 {[%emt 0:00:22]} 5. Nb3 {[%emt 0:00:00]} Qc7 {[%emt 0:00:10]} 6. Nc3 {[%emt 0:00:04]} a6 {[%emt 0:00:09]} 7. Bd3 {[%emt 0:00:21]} d6 {[%emt 0:01:44]} 8. O-O {[%emt 0:00:05]} Nf6 {[%emt 0:00:00]} 9. f4 {[%emt 0:00:53]} Nbd7 {[%emt 0:00:01]} 10. Qe2 {[%emt 0:03:58]} Be7 {[%emt 0:04:21]} 11. Bd2 {[%emt 0:00:20]} O-O {[%emt 0:04:45]} 12. Rae1 {[%emt 0:00:11]} Nc5 {[%emt 0:06:39]} 13. Nxc5 {[%emt 0:06:25]} Qxc5+ {[%emt 0:00:21]} 14. Kh1 {[%emt 0:00:13]} e5 {[%emt 0:04:07]} 15. f5 {[%emt 0:01:08]} b5 {[%emt 0:01:37]} 16. b4 {[%emt 0:05:15]} Qc7 {[%emt 0:03:07]} 17. Nd5 {[%emt 0:03:29]} Qd8 {[%emt 0:03:42]} 18. Nxe7+ {[%emt 0:03:22]} Qxe7 {[%emt 0:00:09]} 19. g4 {[%emt 0:00:04]} d5 {[%emt 0:07:50]} 20. g5 {[%emt 0:06:19]} Nxe4 {[%emt 0:05:41]} 21. f6 {[%emt 0:01:51]} Qd7 {[%emt 0:04:22]} 22. fxg7 {[%emt 0:23:13]} Kxg7 {[%emt 0:01:31]} 23. Bxe4 {[%emt 0:08:28]} dxe4 {[%emt 0:00:13]} 24. Qf2 {[%emt 0:00:22]} e3 {[%emt 0:03:01]} 25. Rxe3 {[%emt 0:10:28]} Bb7+ {[%emt 0:02:47]} 26. Kg1 {[%emt 0:02:30]} Qd5 {[%emt 0:00:34]} 27. Qe2 {[%emt 0:08:39]} Rac8 {[%emt 0:06:17]} 28. Bc3 {[%emt 0:03:22]} Qh1+ {[%emt 0:13:02]} 29. Kf2 {[%emt 0:00:04]} Qxh2+ {[%emt 0:00:19]} 30. Ke1 {[%emt 0:00:05]} Qxe2+ {[%emt 0:00:45]} 31. Kxe2 {[%emt 0:00:14]} Kg8 {[%emt 0:00:37]} 32. Rd1 {[%emt 0:06:14]} Rc4 {[%emt 0:03:19]} 33. Bxe5 {[%emt 0:00:58]} Rxc2+ {[%emt 0:02:06]} 34. Rd2 {[%emt 0:00:33]} Rfc8 {[%emt 0:02:46]} 35. Bf6 {[%emt 0:00:44]} Bd5 {[%emt 0:04:15]} 36. Rxc2 {[%emt 0:01:20]} Rxc2+ {[%emt 0:00:03]} 37. Kd3 {[%emt 0:00:10]} Rc8 {[%emt 0:00:15]} 38. a3 Kf8 1/2-1/2

[Event "POL-chT 2nd League-3 2020"]
[Site "Poronin"]
[Date "2020.09.07"]
[Round "3.22"]
[White "Majocha, Piotr"]
[Black "Babiarz, Arkadiusz"]
[Result "1-0"]
[ECO "A30"]
[WhiteElo "2047"]
[BlackElo "1872"]
[Annotator "NA"]
[PlyCount "109"]
[EventDate "2020.09.05"]
[EventType "team-tourn"]
[EventCountry "POL"]
[SourceTitle "playchess.com"]
[Source "ChessBase"]
[SourceQuality "1"]
[TimeControl "40/5400+30:900+30"]

1. c4 {[%emt 0:00:00]} c5 {[%emt 0:00:00]} 2. Nf3 {[%emt 0:00:00]} Nc6 {[%emt 0:00:00]} 3. g3 {[%emt 0:00:00]} g6 {[%emt 0:00:01]} 4. Bg2 {[%emt 0:00:19]} Bg7 {[%emt 0:00:27]} 5. O-O {[%emt 0:00:09]} d6 {[%emt 0:00:16]} 6. Nc3 {[%emt 0:00:23]} e5 {[%emt 0:00:27]} 7. d3 {[%emt 0:00:24]} Nge7 {[%emt 0:00:19]} 8. a3 {[%emt 0:01:32]} O-O {[%emt 0:00:22]} 9. Rb1 {[%emt 0:00:23]} a5 {[%emt 0:03:26]} 10. Ne1 {[%emt 0:00:46]} Be6 {[%emt 0:06:52]} 11. Nc2 {[%emt 0:00:22]} Qb6 {[%emt 0:06:03]} 12. Ne3 {[%emt 0:02:52]} Nd4 {[%emt 0:03:28]} 13. Bd2 {[%emt 0:14:03]} Nec6 {[%emt 0:22:14]} 14. Ned5 {[%emt 0:15:16]} Qb3 {[%emt 0:01:39]} 15. e3 {[%emt 0:01:01]} Qxd1 {[%emt 0:00:14]} 16. Rfxd1 {[%emt 0:00:03]} Nb3 {[%emt 0:04:22]} 17. Nb5 {[%emt 0:18:43]} Rad8 {[%emt 0:05:01]} 18. Bc3 {[%emt 0:00:58]} Bg4 {[%emt 0:06:58]} 19. Re1 {[%emt 0:01:21]} Bc8 {[%emt 0:01:30]} 20. Bf3 {[%emt 0:02:51]} e4 {[%emt 0:06:21]} 21. Bxe4 {[%emt 0:01:32]} Bxc3 {[%emt 0:00:23]} 22. Nbxc3 {[%emt 0:00:11]} Nd2 {[%emt 0:00:51]} 23. Rbd1 {[%emt 0:00:28]} Nxe4 {[%emt 0:00:08]} 24. Nxe4 {[%emt 0:00:37]} Ne5 {[%emt 0:00:24]} 25. Nef6+ {[%emt 0:04:33]} Kg7 {[%emt 0:00:20]} 26. Kg2 {[%emt 0:00:46]} Ng4 {[%emt 0:03:13]} 27. Nxg4 {[%emt 0:00:34]} Bxg4 {[%emt 0:00:02]} 28. f3 {[%emt 0:02:35]} Be6 {[%emt 0:01:04]} 29. Nb6 {[%emt 0:09:18]} d5 {[%emt 0:02:47]} 30. e4 {[%emt 0:09:41]} dxe4 {[%emt 0:04:53]} 31. dxe4 {[%emt 0:00:09]} Rfe8 {[%emt 0:06:12]} 32. Kf2 {[%emt 0:00:35]} f6 {[%emt 0:05:58]} 33. Ke2 {[%emt 0:02:16]} Kf7 {[%emt 0:00:20]} 34. b3 {[%emt 0:02:17]} Ke7 {[%emt 0:01:23]} 35. Nd5+ {[%emt 0:05:13]} Kf7 {[%emt 0:00:16]} 36. Nc7 {[%emt 0:01:20]} Rxd1 {[%emt 0:00:06]} 37. Rxd1 {[%emt 0:00:05]} Rc8 {[%emt 0:00:26]} 38. Nb5 {[%emt 0:01:18]} Ke7 {[%emt 0:00:37]} 39. a4 {[%emt 0:00:39]} Rc6 {[%emt 0:01:04]} 40. Ke3 {[%emt 0:00:00]} g5 {[%emt 0:00:00]} 41. f4 {[%emt 0:02:53]} h6 {[%emt 0:01:41]} 42. f5 {[%emt 0:11:09]} Bf7 {[%emt 0:00:30]} 43. g4 {[%emt 0:00:27]} Be8 {[%emt 0:10:44]} 44. e5 {[%emt 0:01:38]} fxe5 {[%emt 0:00:25]} 45. Ke4 {[%emt 0:00:04]} h5 {[%emt 0:03:58]} 46. Kxe5 {[%emt 0:00:56]} hxg4 {[%emt 0:00:06]} 47. Rd6 {[%emt 0:00:33]} Bh5 {[%emt 0:02:50]} 48. f6+ {[%emt 0:00:36]} Kf7 {[%emt 0:00:54]} 49. Rxc6 {[%emt 0:01:24]} bxc6 {[%emt 0:00:01]} 50. Nd6+ {[%emt 0:00:05]} Kf8 {[%emt 0:00:51]} 51. Ne4 {[%emt 0:00:20]} Bg6 {[%emt 0:00:07]} 52. Nxc5 {[%emt 0:00:07]} Bc2 {[%emt 0:00:05]} 53. Ke6 {[%emt 0:00:12]} Bg6 {[%emt 0:00:47]} 54. Nd7+ {[%emt 0:00:06]} Ke8 {[%emt 0:00:12]} 55. Ne5 {[%emt 0:00:05]} 1-0

[Event "POL-chT 2nd League-3 2020"]
[Site "Poronin"]
[Date "2020.09.07"]
[Round "3.23"]
[White "Ziemniak, Grzegorz"]
[Black "Szydelko, Michal"]
[Result "1-0"]
[ECO "C43"]
[WhiteElo "1693"]
[BlackElo "1877"]
[Annotator "NA"]
[PlyCount "117"]
[EventDate "2020.09.05"]
[EventType "team-tourn"]
[EventCountry "POL"]
[SourceTitle "playchess.com"]
[Source "ChessBase"]
[SourceQuality "1"]
[TimeControl "40/5400+30:900+30"]

1. e4 {[%emt 0:00:00]} e5 {[%emt 0:00:36]} 2. Nf3 {[%emt 0:00:00]} Nf6 {[%emt 0:00:08]} 3. d4 {[%emt 0:00:21]} Nxe4 {[%emt 0:00:12]} 4. Bd3 {[%emt 0:00:17]} d5 {[%emt 0:00:18]} 5. Nxe5 {[%emt 0:00:15]} Bd6 {[%emt 0:01:08]} 6. O-O {[%emt 0:00:14]} O-O {[%emt 0:00:41]} 7. c4 {[%emt 0:00:40]} c6 {[%emt 0:00:53]} 8. Nc3 {[%emt 0:00:28]} Nxc3 {[%emt 0:01:56]} 9. bxc3 {[%emt 0:00:07]} dxc4 {[%emt 0:09:54]} 10. Nxc4 {[%emt 0:02:08]} Be7 {[%emt 0:05:13]} 11. Re1 {[%emt 0:11:32]} Be6 {[%emt 0:14:19]} 12. Ne5 {[%emt 0:10:59]} Nd7 {[%emt 0:13:11]} 13. Qc2 {[%emt 0:20:26]} Nf6 {[%emt 0:08:14]} 14. Bg5 {[%emt 0:05:32]} h6 {[%emt 0:00:44]} 15. Bd2 {[%emt 0:05:06]} Re8 {[%emt 0:09:58]} 16. f4 {[%emt 0:06:26]} Bc8 {[%emt 0:20:48]} 17. Qb3 {[%emt 0:17:14]} Nd5 {[%emt 0:00:19]} 18. c4 {[%emt 0:00:44]} Nxf4 {[%emt 0:01:51]} 19. Bxf4 {[%emt 0:08:40]} Qxd4+ {[%emt 0:00:05]} 20. Kh1 {[%emt 0:00:13]} Qxf4 {[%emt 0:00:27]} 21. Re4 {[%emt 0:00:41]} Qd2 {[%emt 0:03:01]} 22. Nxf7 {[%emt 0:03:43]} Bf5 {[%emt 0:02:34]} 23. Rd1 {[%emt 0:02:21]} Qxd1+ {[%emt 0:03:17]} 24. Qxd1 {[%emt 0:00:10]} Bxe4 {[%emt 0:00:02]} 25. Nxh6+ {[%emt 0:02:49]} gxh6 {[%emt 0:00:04]} 26. Bxe4 {[%emt 0:00:09]} Bg5 {[%emt 0:02:17]} 27. Qg4 {[%emt 0:00:45]} Rad8 {[%emt 0:00:17]} 28. h4 {[%emt 0:00:18]} Rd4 {[%emt 0:00:13]} 29. Bh7+ {[%emt 0:00:19]} Kxh7 {[%emt 0:00:31]} 30. Qxd4 {[%emt 0:00:05]} Re1+ {[%emt 0:01:04]} 31. Kh2 {[%emt 0:00:06]} Be3 {[%emt 0:00:34]} 32. Qe4+ {[%emt 0:01:33]} Kh8 {[%emt 0:00:33]} 33. Qe8+ {[%emt 0:00:10]} Kh7 {[%emt 0:00:28]} 34. Qd7+ {[%emt 0:00:45]} Kg6 {[%emt 0:00:34]} 35. Qe6+ {[%emt 0:00:40]} Kg7 {[%emt 0:00:29]} 36. Qe7+ {[%emt 0:01:02]} Kg8 {[%emt 0:00:15]} 37. Qd8+ {[%emt 0:00:38]} Kg7 {[%emt 0:00:19]} 38. Qd7+ {[%emt 0:00:40]} Kg8 {[%emt 0:00:08]} 39. Qxb7 {[%emt 0:00:07]} Bg1+ {[%emt 0:01:14]} 40. Kg3 {[%emt 0:00:00]} Re6 {[%emt 0:00:00]} 41. Qb1 {[%emt 0:01:52]} Bb6 {[%emt 0:04:19]} 42. Qf5 {[%emt 0:01:19]} Re7 {[%emt 0:05:52]} 43. Qc8+ {[%emt 0:01:41]} Kg7 {[%emt 0:00:42]} 44. Qxc6 {[%emt 0:01:13]} Rc7 {[%emt 0:00:37]} 45. Qe6 {[%emt 0:00:57]} Rc5 {[%emt 0:00:36]} 46. Kh3 {[%emt 0:00:45]} Ra5 {[%emt 0:00:34]} 47. a4 {[%emt 0:00:57]} h5 {[%emt 0:02:27]} 48. g4 {[%emt 0:00:41]} hxg4+ {[%emt 0:00:36]} 49. Kxg4 {[%emt 0:00:11]} Rc5 {[%emt 0:00:48]} 50. h5 {[%emt 0:04:35]} Rc7 {[%emt 0:03:53]} 51. a5 {[%emt 0:01:23]} Bxa5 {[%emt 0:00:45]} 52. Qe5+ {[%emt 0:00:31]} Kh6 {[%emt 0:00:11]} 53. Qg5+ {[%emt 0:00:51]} Kh7 {[%emt 0:00:16]} 54. Qxa5 {[%emt 0:00:12]} Rxc4+ {[%emt 0:00:18]} 55. Kg5 {[%emt 0:00:07]} Kh8 {[%emt 0:01:13]} 56. Qe5+ {[%emt 0:00:51]} Kh7 {[%emt 0:00:13]} 57. Qe7+ {[%emt 0:00:11]} Kh8 {[%emt 0:00:14]} 58. Qf8+ {[%emt 0:00:12]} Kh7 {[%emt 0:00:04]} 59. Qf7+ {[%emt 0:00:05]} 1-0

[Event "POL-chT 2nd League-3 2020"]
[Site "Poronin"]
[Date "2020.09.07"]
[Round "3.24"]
[White "Trusz, Julia"]
[Black "Polak, Sylwia"]
[Result "1/2-1/2"]
[ECO "D11"]
[WhiteElo "1675"]
[BlackElo "1590"]
[Annotator "NA"]
[PlyCount "69"]
[EventDate "2020.09.05"]
[EventType "team-tourn"]
[EventCountry "POL"]
[SourceTitle "playchess.com"]
[Source "ChessBase"]
[SourceQuality "1"]
[TimeControl "40/5400+30:900+30"]

1. d4 {[%emt 0:00:00]} d5 {[%emt 0:00:00]} 2. c4 {[%emt 0:00:00]} c6 {[%emt 0:00:00]} 3. Nf3 {[%emt 0:00:15]} Nf6 {[%emt 0:00:00]} 4. Qc2 {[%emt 0:00:40]} e6 {[%emt 0:00:18]} 5. g3 {[%emt 0:01:56]} Nbd7 {[%emt 0:01:41]} 6. Nbd2 {[%emt 0:03:05]} Bd6 {[%emt 0:02:30]} 7. Bg2 {[%emt 0:01:28]} O-O {[%emt 0:00:07]} 8. O-O {[%emt 0:00:27]} Qe7 {[%emt 0:14:41]} 9. e4 {[%emt 0:08:23]} dxe4 {[%emt 0:00:55]} 10. Nxe4 {[%emt 0:00:14]} Nxe4 {[%emt 0:00:37]} 11. Qxe4 {[%emt 0:00:07]} e5 {[%emt 0:12:04]} 12. dxe5 {[%emt 0:26:22]} Nxe5 {[%emt 0:00:11]} 13. Nxe5 {[%emt 0:03:03]} Qxe5 {[%emt 0:00:12]} 14. Qc2 {[%emt 0:03:03]} Bf5 {[%emt 0:05:59]} 15. Qb3 {[%emt 0:00:45]} Qe7 {[%emt 0:06:55]} 16. Be3 {[%emt 0:02:39]} Rfd8 {[%emt 0:12:12]} 17. Rfe1 {[%emt 0:06:41]} Qc7 {[%emt 0:08:08]} 18. Rad1 {[%emt 0:08:27]} Be6 {[%emt 0:13:49]} 19. Qc2 {[%emt 0:08:58]} Bb4 {[%emt 0:04:37]} 20. Rf1 {[%emt 0:03:08]} b6 {[%emt 0:06:15]} 21. Bf4 {[%emt 0:12:30]} Bd6 {[%emt 0:01:52]} 22. Bg5 {[%emt 0:04:39]} Re8 {[%emt 0:00:58]} 23. Qd3 {[%emt 0:01:49]} Be5 {[%emt 0:02:51]} 24. b3 {[%emt 0:00:40]} f6 {[%emt 0:00:28]} 25. Bc1 {[%emt 0:01:08]} Rad8 {[%emt 0:00:30]} 26. Qf3 {[%emt 0:00:55]} c5 {[%emt 0:00:31]} 27. Rxd8 {[%emt 0:00:32]} Rxd8 {[%emt 0:00:13]} 28. Rd1 {[%emt 0:00:19]} Rxd1+ {[%emt 0:02:51]} 29. Qxd1 {[%emt 0:00:06]} Qd6 {[%emt 0:00:29]} 30. Qxd6 {[%emt 0:01:19]} Bxd6 {[%emt 0:00:05]} 31. Be4 {[%emt 0:00:37]} Be5 {[%emt 0:01:44]} 32. Kf1 {[%emt 0:00:43]} Kf7 {[%emt 0:00:31]} 33. Ke2 {[%emt 0:00:29]} f5 {[%emt 0:01:19]} 34. Bc2 {[%emt 0:00:31]} Kf6 {[%emt 0:00:29]} 35. Be3 {[%emt 0:00:45]} 1/2-1/2

[Event "POL-chT 2nd League-3 2020"]
[Site "Poronin"]
[Date "2020.09.08"]
[Round "4.1"]
[White "Fus, Jakub"]
[Black "Gumula, Daniel"]
[Result "1-0"]
[ECO "A50"]
[WhiteElo "2410"]
[BlackElo "2177"]
[Annotator "RC"]
[PlyCount "161"]
[EventDate "2020.09.05"]
[EventType "team-tourn"]
[EventCountry "POL"]
[SourceTitle "playchess.com"]
[Source "ChessBase"]
[SourceQuality "1"]
[TimeControl "40/5400+30:900+30"]

1. d4 {[%emt 0:00:00]} Nf6 {[%emt 0:00:35]} 2. c4 {[%emt 0:00:00]} Nc6 {[%emt 0:00:07]} 3. Nf3 {[%emt 0:00:00]} d6 {[%emt 0:02:41]} 4. g3 {[%emt 0:00:50]} Bg4 {[%emt 0:01:19]} 5. Bg2 {[%emt 0:00:09]} g6 {[%emt 0:04:11]} 6. O-O {[%emt 0:00:23]} Qc8 {[%emt 0:02:41]} 7. Nc3 {[%emt 0:02:52]} Bg7 {[%emt 0:02:14]} 8. d5 {[%emt 0:02:23]} Nb8 {[%emt 0:03:03]} 9. Re1 {[%emt 0:03:36]} O-O {[%emt 0:03:43]} 10. e4 {[%emt 0:05:07]} c6 {[%emt 0:12:24]} 11. Be3 {[%emt 0:02:45]} Bh3 {[%emt 0:04:38]} 12. Rc1 {[%emt 0:03:57]} Bxg2 {[%emt 0:02:55]} 13. Kxg2 {[%emt 0:00:04]} Nbd7 {[%emt 0:00:04]} 14. h3 {[%emt 0:05:18]} a6 {[%emt 0:07:27]} 15. Qd2 {[%emt 0:02:31]} Re8 {[%emt 0:00:15]} 16. Bh6 {[%emt 0:01:56]} Bh8 {[%emt 0:00:45]} 17. Ng5 {[%emt 0:04:06]} cxd5 {[%emt 0:27:37]} 18. cxd5 {[%emt 0:00:55]} Qc4 {[%emt 0:00:11]} 19. f4 {[%emt 0:11:55]} Nc5 {[%emt 0:00:20]} 20. Re3 {[%emt 0:18:39]} Nfd7 {[%emt 0:01:25]} 21. Nf3 {[%emt 0:00:49]} Rad8 {[%emt 0:12:16]} 22. Ne2 {[%emt 0:03:25]} Qxa2 {[%emt 0:03:04]} 23. Ned4 {[%emt 0:20:17]} Rc8 {[%emt 0:05:22]} 24. Rec3 {[%emt 0:05:04]} Nb6 {[%emt 0:00:10]} 25. Qe2 {[%emt 0:03:26]} Nca4 {[%emt 0:00:56]} 26. R3c2 {[%emt 0:01:15]} Rxc2 {[%emt 0:00:30]} 27. Qxc2 {[%emt 0:00:23]} Nc5 {[%emt 0:01:32]} 28. f5 {[%emt 0:00:51]} Nbd7 {[%emt 0:00:41]} 29. Qe2 {[%emt 0:00:49]} Ne5 {[%emt 0:00:23]} 30. Rc2 {[%emt 0:00:33]} Nxf3 {[%emt 0:00:37]} 31. Nxf3 {[%emt 0:00:11]} Qa4 {[%emt 0:00:09]} 32. e5 {[%emt 0:00:36]} Qe4 {[%emt 0:00:26]} 33. Qxe4 {[%emt 0:00:24]} Nxe4 {[%emt 0:00:02]} 34. fxg6 {[%emt 0:00:13]} hxg6 {[%emt 0:00:17]} 35. Rc7 {[%emt 0:01:13]} dxe5 {[%emt 0:00:51]} 36. Rxb7 {[%emt 0:00:06]} Nd6 {[%emt 0:00:26]} 37. Rb6 {[%emt 0:00:25]} e4 {[%emt 0:01:05]} 38. Nd2 {[%emt 0:00:01]} Rc8 {[%emt 0:00:35]} 39. Bf4 {[%emt 0:00:29]} Rc2 {[%emt 0:00:13]} 40. Kf1 {[%emt 0:00:00]} f5 {[%emt 0:00:00]} 41. Rxa6 {[%emt 0:04:10]} Rxb2 {[%emt 0:13:20]} 42. Ra8+ {[%emt 0:00:06]} Kf7 {[%emt 0:01:11]} 43. Rxh8 {[%emt 0:00:05]} Kf6 {[%emt 0:01:34]} 44. h4 {[%emt 0:01:59]} Nf7 {[%emt 0:00:30]} 45. Rb8 {[%emt 0:01:51]} Rxb8 {[%emt 0:00:33]} 46. Bxb8 {[%emt 0:00:07]} g5 {[%emt 0:00:06]} 47. hxg5+ {[%emt 0:01:47]} Kxg5 {[%emt 0:00:05]} 48. Nb3 {[%emt 0:01:01]} Kg4 {[%emt 0:01:06]} 49. Kf2 {[%emt 0:00:37]} Nd6 {[%emt 0:00:24]} 50. Nd4 {[%emt 0:02:14]} f4 {[%emt 0:01:51]} 51. gxf4 {[%emt 0:00:26]} Kxf4 {[%emt 0:00:07]} 52. Nc6 {[%emt 0:00:49]} e3+ {[%emt 0:00:37]} 53. Ke2 {[%emt 0:00:04]} Ke4 {[%emt 0:00:09]} 54. Nxe7 {[%emt 0:00:05]} Nf5 {[%emt 0:01:38]} 55. Nxf5 {[%emt 0:00:11]} Kxd5 {[%emt 0:00:04]} 56. Kxe3 {[%emt 0:00:09]} Kc5 {[%emt 0:00:45]} 57. Ke4 {[%emt 0:00:17]} Kc4 {[%emt 0:00:20]} 58. Be5 {[%emt 0:00:05]} Kc5 {[%emt 0:00:09]} 59. Ne3 {[%emt 0:00:36]} Kc6 {[%emt 0:00:04]} 60. Kd4 {[%emt 0:00:07]} Kb5 {[%emt 0:00:11]} 61. Bd6 {[%emt 0:00:19]} Kc6 {[%emt 0:00:04]} 62. Nc4 {[%emt 0:00:31]} Kb5 {[%emt 0:00:31]} 63. Kd5 {[%emt 0:00:07]} Ka6 {[%emt 0:00:03]} 64. Kc6 {[%emt 0:00:06]} Ka7 {[%emt 0:00:02]} 65. Nb6 {[%emt 0:00:05]} Ka6 {[%emt 0:00:02]} 66. Bb8 {[%emt 0:00:04]} Ka5 {[%emt 0:00:03]} 67. Nd5 {[%emt 0:00:03]} Ka6 {[%emt 0:00:03]} 68. Nb4+ {[%emt 0:00:04]} Ka5 {[%emt 0:00:04]} 69. Kc5 {[%emt 0:00:02]} Ka4 {[%emt 0:00:05]} 70. Kc4 {[%emt 0:00:03]} Ka5 {[%emt 0:00:03]} 71. Bc7+ {[%emt 0:00:03]} Ka4 {[%emt 0:00:05]} 72. Bb6 {[%emt 0:00:04]} Ka3 {[%emt 0:00:05]} 73. Nd3 {[%emt 0:00:02]} Ka4 {[%emt 0:00:04]} 74. Nb2+ {[%emt 0:00:03]} Ka3 {[%emt 0:00:05]} 75. Kc3 {[%emt 0:00:02]} Ka2 {[%emt 0:00:04]} 76. Kc2 {[%emt 0:00:02]} Ka3 {[%emt 0:00:03]} 77. Bc5+ {[%emt 0:00:04]} Ka2 {[%emt 0:00:04]} 78. Nd3 {[%emt 0:00:08]} Ka1 {[%emt 0:00:04]} 79. Bf8 {[%emt 0:00:07]} Ka2 {[%emt 0:00:06]} 80. Nc1+ {[%emt 0:00:02]} Ka1 {[%emt 0:00:04]} 81. Bg7# 1-0

[Event "POL-chT 2nd League-3 2020"]
[Site "Poronin"]
[Date "2020.09.08"]
[Round "4.2"]
[White "Lapaj, Mateusz"]
[Black "Baum, Jonasz"]
[Result "0-1"]
[ECO "B90"]
[WhiteElo "2235"]
[BlackElo "2299"]
[Annotator "ChessBase"]
[PlyCount "58"]
[EventDate "2020.09.05"]
[EventType "team-tourn"]
[EventCountry "POL"]
[SourceTitle "playchess.com"]
[Source "ChessBase"]
[SourceQuality "1"]
[TimeControl "40/5400+30:900+30"]

1. e4 {[%emt 0:00:00]} c5 {[%emt 0:00:00]} 2. Nf3 {[%emt 0:00:00]} d6 {[%emt 0:00:00]} 3. d4 {[%emt 0:00:00]} cxd4 {[%emt 0:00:00]} 4. Nxd4 {[%emt 0:00:00]} Nf6 {[%emt 0:00:00]} 5. Nc3 {[%emt 0:00:00]} a6 {[%emt 0:00:04]} 6. f3 {[%emt 0:00:00]} b5 {[%emt 0:03:32]} 7. Be3 {[%emt 0:00:01]} Bb7 {[%emt 0:12:48]} 8. Qd2 {[%emt 0:00:28]} Nbd7 {[%emt 0:00:13]} 9. O-O-O {[%emt 0:11:45]} Rc8 {[%emt 0:10:01]} 10. g4 {[%emt 0:28:57]} Ne5 {[%emt 0:13:54]} 11. Be2 {[%emt 0:18:18]} Nc4 {[%emt 0:21:00]} 12. Bxc4 {[%emt 0:00:03]} Rxc4 {[%emt 0:00:06]} 13. g5 {[%emt 0:05:31]} Nd7 {[%emt 0:00:36]} 14. h4 {[%emt 0:00:44]} Ne5 {[%emt 0:08:23]} 15. b3 {[%emt 0:26:20]} Rc8 {[%emt 0:07:41]} 16. Nd5 {[%emt 0:02:44]} e6 {[%emt 0:01:22]} 17. Nb4 {[%emt 0:00:01]} Qa5 {[%emt 0:09:08]} 18. Kb1 {[%emt 0:00:13]} d5 {[%emt 0:00:59]} 19. Nd3 {[%emt 0:00:03]} Qxd2 {[%emt 0:00:12]} 20. Rxd2 {[%emt 0:00:29]} Nxf3 {[%emt 0:01:36]} 21. Nxf3 {[%emt 0:00:01]} dxe4 {[%emt 0:00:06]} 22. Nde5 {[%emt 0:01:04]} exf3 {[%emt 0:00:06]} 23. Rd7 {[%emt 0:00:55]} Be4 {[%emt 0:00:55]} 24. Rh2 {[%emt 0:00:43]} Bc5 {[%emt 0:02:37]} 25. Bxc5 {[%emt 0:03:07]} Rxc5 {[%emt 0:00:01]} 26. Rhd2 {[%emt 0:00:16]} O-O 27. Ng4 {[%emt 0:00:29]} Rd5 {[%emt 0:02:32]} 28. R2xd5 {[%emt 0:00:19]} exd5 {[%emt 0:01:38]} 29. Ne3 {[%emt 0:00:15]} f6 {[%emt 0:01:57]} 0-1